fUST/lending_fUST_20250724
["ID","MTS","AMOUNT","RATE_DAILY","PERIOD"]
[374539044,1753343454011,-205.0,0.0002454,2]
[374539045,1753343454021,-507.9,0.00024546,7]
[374539046,1753343454030,-150.183687,0.0002459,7]
[374539047,1753343454039,-500.0,0.00024608,2]
[374539048,1753343454050,-500.0,0.00024631,2]
[374539049,1753343454059,-1833.77,0.00024657,2]
[374539050,1753343454068,-547.87,0.00024657,2]
[374539051,1753343454077,-460.0,0.00024657,2]
[374539052,1753343454087,-742.12,0.00024657,2]
[374539053,1753343454100,-1107.93,0.00024657,2]
[374539054,1753343454110,-1029.53,0.00024657,2]
[374539055,1753343454119,-302.45061606,0.00024657,2]
[374539056,1753343454129,-745.12,0.00024657,2]
[374539057,1753343454139,-1624.77,0.00024657,2]
[374539058,1753343454149,-646.62,0.00024657,2]
[374539059,1753343454158,-646.07,0.00024657,2]
[374539060,1753343454167,-741.71,0.00024657,2]
[374539061,1753343454179,-691.0,0.00024657,2]
[374539062,1753343454192,-665.33,0.00024657,2]
[374539063,1753343454201,-151.0,0.00024658,2]
[374539064,1753343454210,-151.0,0.00024658,2]
[374539065,1753343454220,-220.17848307,0.00024658,2]
[374539066,1753343454229,-151.0,0.00024658,2]
[374539067,1753343454240,-699.0,0.00024658,2]
[374539068,1753343454249,-151.0,0.00024658,2]
[374539069,1753343454258,-151.0,0.00024658,2]
[374539070,1753343454268,-151.0,0.00024658,2]
[374539071,1753343454278,-151.0,0.00024658,2]
[374539072,1753343454288,-202.58711799,0.00024658,2]
[374539073,1753343454299,-151.52309395,0.00024658,2]
[374539074,1753343454309,-248.67278207,0.00024658,2]
[374539075,1753343454318,-609.0,0.00024658,2]
[374539076,1753343454328,-589.0,0.00024658,2]
[374539077,1753343454337,-151.0,0.00024658,2]
[374539078,1753343454347,-151.0,0.00024658,2]
[374539079,1753343454357,-151.0,0.00024658,2]
[374539080,1753343454367,-198.53213712,0.00024658,2]
[374539081,1753343454376,-203.46066934,0.00024659,11]
[374539082,1753343454386,-150.183687,0.00024662,10]
[374539083,1753343454395,-892.0,0.000247,2]
[374539084,1753343454405,-966.45,0.00024704,2]
[374539085,1753343454415,-500.0,0.00024747,2]
[374539086,1753343454428,-800.0,0.0002476,2]
[374539087,1753343454437,-198.0,0.00024784,2]
[374539088,1753343454447,-1316.5065956,0.00024787,20]
[374539089,1753343454458,-1023.4,0.000248,2]
[374539090,1753343454467,-2000.0,0.000248,2]
[374539091,1753343454477,-1412.18,0.000248,7]
[374539092,1753343454488,-8291.67,0.000248,7]
[374539093,1753343454499,-2000.62367073,0.000248,2]
[374539094,1753343454508,-1147.97045047,0.000248,2]
[374539095,1753343454517,-150.0,0.000248,2]
[374539096,1753343454527,-572.59539046,0.000248,2]
[374539097,1753343454536,-1453.69267482,0.000248,2]
[374539098,1753343454546,-800.0,0.00024804,2]
[374539099,1753343454556,-823.0,0.00024815,2]
[374539100,1753343454566,-500.0,0.00024828,2]
[374539101,1753343454576,-500.0,0.00024848,2]
[374539102,1753343454593,-1147.97045039,0.0002486,2]
[374539103,1753343454606,-203.46066934,0.00024866,12]
[374539104,1753343454616,-500.0,0.00024873,2]
[374539105,1753343454626,-500.0,0.00024873,2]
[374539106,1753343454635,-150.183687,0.00024875,30]
[374539107,1753343454645,-150.183687,0.00024884,10]
[374539108,1753343454655,-3270.13,0.0002489,10]
[374539109,1753343454664,-150.183687,0.0002489,15]
[374539110,1753343454673,-4430.99,0.0002489,10]
[374539111,1753343454683,-3692.49,0.0002489,10]
[374539112,1753343454692,-3077.07,0.0002489,10]
[374539113,1753343454702,-1387.65,0.00024899,2]
[374539114,1753343454712,-1387.65,0.00024899,2]
[374539115,1753343454721,-1387.65,0.00024899,2]
[374539116,1753343454731,-1387.65,0.00024899,2]
[374539117,1753343454741,-1387.65,0.00024899,2]
[374539118,1753343454751,-1387.65,0.00024899,2]
[374539119,1753343454761,-1387.65,0.00024899,2]
[374539120,1753343454770,-1387.65,0.00024899,2]
[374539121,1753343454875,-1387.65,0.00024899,2]
[374539122,1753343454885,-1387.65,0.00024899,2]
[374539123,1753343454895,-1387.65,0.00024899,2]
[374539124,1753343454905,-1387.65,0.00024899,2]
[374539125,1753343454914,-1387.65,0.00024899,2]
[374539126,1753343454923,-1387.65,0.00024899,2]
[374539127,1753343454933,-1387.65,0.00024899,2]
[374539128,1753343454942,-151.0,0.000249,7]
[374539129,1753343454951,-151.0,0.000249,7]
[374539130,1753343454961,-151.0,0.000249,7]
[374539131,1753343454970,-151.0,0.000249,7]
[374539132,1753343454980,-151.0,0.000249,7]
[374539133,1753343454989,-151.0,0.000249,7]
[374539134,1753343454999,-151.0,0.000249,7]
[374539135,1753343455008,-151.0,0.000249,2]
[374539136,1753343455018,-151.0,0.000249,7]
[374539137,1753343455028,-151.489859,0.000249,7]
[374539138,1753343455037,-151.0,0.000249,7]
[374539139,1753343455046,-151.0,0.000249,7]
[374539140,1753343455056,-151.0,0.000249,7]
[374539141,1753343455066,-151.0,0.000249,7]
[374539142,1753343455075,-151.0,0.000249,7]
[374539143,1753343455084,-151.0,0.000249,7]
[374539144,1753343455094,-532.991995,0.000249,7]
[374539145,1753343455104,-532.991995,0.000249,7]
[374539146,1753343455113,-151.0,0.000249,7]
[374539147,1753343455123,-151.0,0.000249,7]
[374539148,1753343455133,-175.364668,0.000249,7]
[374539149,1753343455142,-175.364668,0.000249,7]
[374539150,1753343455152,-151.0,0.000249,7]
[374539151,1753343455161,-316.668007,0.000249,7]
[374539152,1753343455171,-316.668007,0.000249,7]
[374539153,1753343455180,-151.0,0.000249,7]
[374539154,1753343455189,-151.0,0.000249,7]
[374539155,1753343455198,-150.183687,0.000249,2]
[374539156,1753343455208,-507.9,0.000249,7]
[374539157,1753343455217,-418808.56536421,0.000249,2]
[374539158,1753343455293,-1626.45,0.000249,2]
[374539159,1753343455692,-500.0,0.00019174,2]
[374539160,1753343455702,-500.0,0.00019174,2]
[374539161,1753343455712,-500.0,0.00019174,2]
[374539162,1753343455721,-138.56627715,0.00019452,2]
[374539163,1753343455733,-321.43372285,0.00019452,2]
[374539164,1753343455742,-460.0,0.00019726,2]
[374539165,1753343455751,-460.0,0.0002,2]
[374539166,1753343455761,-1564.55,0.00024383,2]
[374539167,1753343455770,-1564.55,0.00024657,2]
[374539168,1753343455779,-171.40737469,0.000249,2]
[374539170,1753343480906,167.344903,0.00013699,2]
[374539171,1753343561768,95000.0,0.00026027,120]
[374539197,1753343898784,199.0,0.00019001,2]
[374539198,1753343937865,150.0,0.00018552,2]
[374539239,1753344195351,150.0,0.00018577,2]
[374539243,1753344239746,174.89970504,0.00018603,2]
[374539244,1753344342118,-300.0,0.00019076,2]
[374539245,1753344342140,-300.0,0.00019076,2]
[374539246,1753344342162,-757.38461698,0.00019076,2]
[374539247,1753344442095,-300.0,0.00019075,2]
[374539248,1753344442119,-442.61538302,0.00019076,2]
[374539249,1753344442139,-27.333747,0.00019076,2]
[374539250,1753344445095,-272.666253,0.00019076,2]
[374539251,1753344445125,-200.30474525,0.00019076,2]
[374539252,1753344445150,-401.0,0.00019076,2]
[374539253,1753344445175,-500.0,0.00019076,2]
[374539254,1753344445205,-188.79368178,0.00019076,2]
[374539255,1753344445237,-500.0,0.00019076,2]
[374539256,1753344445265,-500.0,0.00019076,2]
[374539257,1753344445291,-102.0103577,0.00019076,2]
[374539258,1753344454886,302.69733596,0.00018981,2]
[374539259,1753344465826,910.38721381,0.000189,2]
[374539260,1753344478431,261.54144893,0.00018976,2]
[374539261,1753344496871,302.270211,0.00018175,2]
[374539262,1753344517594,158.977657,0.00013699,2]
[374539281,1753344633063,-200.30474524,0.00019073,2]
[374539282,1753344633074,-1200.0,0.00019074,2]
[374539283,1753344633084,-248.65412701,0.00019074,2]
[374539286,1753344633097,-51.34587299,0.00019074,2]
[374539289,1753344633107,-470.97801877,0.00019074,2]
[374539291,1753344633119,-29.02198123,0.00019074,2]
[374539293,1753344633129,-500.0,0.00019074,2]
[374539295,1753344633139,-266.13301877,0.00019074,2]
[374539297,1753344633150,-233.86698123,0.00019074,2]
[374539299,1753344633161,-238.12289406,0.00019074,2]
[374539599,1753344639883,-261.87710594,0.00019074,2]
[374539600,1753344639893,-500.0,0.00019074,2]
[374539601,1753344639903,-123.81921678,0.00019074,2]
[374539602,1753344639915,-376.18078322,0.00019074,2]
[374539603,1753344639924,-500.0,0.00019074,2]
[374539604,1753344639934,-500.0,0.00019074,2]
[374539605,1753344639944,-500.0,0.00019074,2]
[374539606,1753344639954,-423.36510319,0.00019074,2]
[374539607,1753344640010,-76.63489681,0.00019074,2]
[374539608,1753344640020,-500.0,0.00019074,2]
[374539609,1753344640029,-500.0,0.00019074,2]
[374539610,1753344640039,-500.0,0.00019074,2]
[374539611,1753344640049,-500.0,0.00019074,2]
[374539612,1753344640059,-500.0,0.00019074,2]
[374539613,1753344640069,-500.0,0.00019074,2]
[374539614,1753344640079,-372.23778103,0.00019074,2]
[374539615,1753344640088,-500.0,0.00019074,2]
[374539616,1753344640098,-500.0,0.00019074,2]
[374539617,1753344640107,-500.0,0.00019074,2]
[374539618,1753344640118,-500.0,0.00019074,2]
[374539619,1753344640127,-500.0,0.00019074,2]
[374539620,1753344640137,-500.0,0.00019074,2]
[374539621,1753344640147,-500.0,0.00019074,2]
[374539622,1753344640156,-9053.97864907,0.00019078,5]
[374539623,1753344640168,-1166.72500875,0.00019078,5]
[374539624,1753344640177,-3478.70817549,0.00019078,2]
[374539625,1753344640186,-741.3,0.00019168,3]
[374539626,1753344640195,-236.02858272,0.0001917,2]
[374539627,1753344640205,-501.17495243,0.00019173,2]
[374539628,1753344640215,-501.05926252,0.00019173,2]
[374539629,1753344640224,-155.27804509,0.00019173,2]
[374539630,1753344640234,-500.0,0.00019173,2]
[374539631,1753344640244,-500.59369945,0.00019173,2]
[374539632,1753344640253,-500.0,0.00019173,2]
[374539634,1753344640263,-500.0,0.00019176,2]
[374539636,1753344640273,-449.69119583,0.00019176,2]
[374539638,1753344640283,-155.549,0.00019177,2]
[374539639,1753344640293,-460.0,0.00019178,2]
[374539640,1753344640302,-460.0,0.00019178,2]
[374539641,1753344640312,-460.0,0.00019178,2]
[374539642,1753344640321,-460.91638229,0.00019178,2]
[374539643,1753344640330,-460.0,0.00019178,2]
[374539644,1753344640340,-460.84311214,0.00019178,2]
[374539645,1753344640349,-460.0,0.00019178,2]
[374539646,1753344640359,-460.0,0.00019178,2]
[374539647,1753344640368,-460.0,0.00019178,2]
[374539648,1753344640378,-460.0,0.00019178,2]
[374539650,1753344640387,-460.0,0.00019178,2]
[374539652,1753344640397,-465.95873314,0.00019178,2]
[374539653,1753344640406,-462.15361917,0.00019178,2]
[374539654,1753344640416,-460.0,0.00019178,2]
[374539655,1753344640426,-460.0,0.00019178,2]
[374539656,1753344640435,-460.0,0.00019178,2]
[374539657,1753344640445,-466.56276797,0.00019178,2]
[374539658,1753344640455,-460.0,0.00019178,2]
[374539659,1753344640465,-460.0,0.00019178,2]
[374539660,1753344640474,-460.0,0.00019178,2]
[374539661,1753344640483,-460.0,0.00019178,2]
[374539662,1753344640493,-460.0,0.00019178,2]
[374539664,1753344640503,-462.12822993,0.00019178,2]
[374539665,1753344640512,-460.0,0.00019178,2]
[374539666,1753344640521,-209.35839772,0.00019178,2]
[374539667,1753344640531,-460.0,0.00019178,2]
[374539668,1753344640541,-460.0,0.00019178,2]
[374539669,1753344640551,-460.0,0.00019178,2]
[374539670,1753344640561,-209.01490085,0.00019178,2]
[374539671,1753344640571,-460.0,0.00019178,2]
[374539672,1753344640580,-460.0,0.00019178,2]
[374539673,1753344640590,-460.0,0.00019178,2]
[374539674,1753344640600,-460.0,0.00019178,2]
[374539675,1753344640610,-460.0,0.00019178,2]
[374539676,1753344640619,-420.02236306,0.00019178,2]
[374539677,1753344640628,-460.0,0.00019178,2]
[374539678,1753344640637,-460.0,0.00019178,2]
[374539679,1753344640647,-460.0,0.00019178,2]
[374539680,1753344640656,-460.0,0.00019178,2]
[374539681,1753344640665,-460.0,0.00019178,2]
[374539682,1753344640675,-460.0,0.00019178,2]
[374539683,1753344640684,-460.0,0.00019178,2]
[374539684,1753344640694,-460.0,0.00019178,2]
[374539685,1753344640704,-460.0,0.00019178,2]
[374539686,1753344640714,-462.5421862,0.00019178,2]
[374539687,1753344640725,-460.0,0.00019178,2]
[374539688,1753344640735,-460.0,0.00019178,2]
[374539690,1753344640745,-460.0,0.00019178,2]
[374539691,1753344640755,-460.0,0.00019178,2]
[374539693,1753344640764,-460.0,0.00019178,2]
[374539695,1753344640774,-460.0,0.00019178,2]
[374539696,1753344640783,-460.0,0.00019178,2]
[374539697,1753344640794,-460.0,0.00019178,2]
[374539698,1753344640805,-460.0,0.00019178,2]
[374539699,1753344640815,-460.0,0.00019178,2]
[374539700,1753344640824,-460.0,0.00019178,2]
[374539701,1753344640833,-460.0,0.00019178,2]
[374539702,1753344640842,-158.60335011,0.00019178,2]
[374539703,1753344640851,-460.0,0.00019178,2]
[374539704,1753344640861,-460.0,0.00019178,2]
[374539705,1753344640870,-460.0,0.00019178,2]
[374539706,1753344640880,-460.0,0.00019178,2]
[374539707,1753344640889,-250.86541694,0.00019178,2]
[374539708,1753344640899,-460.0,0.00019178,2]
[374539709,1753344640909,-460.0,0.00019178,2]
[374539710,1753344640918,-460.0,0.00019178,2]
[374539711,1753344640928,-460.0,0.00019178,2]
[374539712,1753344640938,-460.0,0.00019178,2]
[374539713,1753344640947,-460.0,0.00019178,2]
[374539714,1753344640957,-460.0,0.00019178,2]
[374539715,1753344640967,-460.0,0.00019178,2]
[374539716,1753344640976,-460.0,0.00019178,2]
[374539717,1753344640986,-460.0,0.00019178,2]
[374539718,1753344640995,-460.0,0.00019178,2]
[374539719,1753344641005,-1135.84,0.00019178,2]
[374539720,1753344641015,-460.0,0.00019178,2]
[374539721,1753344641025,-460.0,0.00019178,2]
[374539722,1753344641034,-460.0,0.00019178,2]
[374539723,1753344641044,-460.0,0.00019178,2]
[374539724,1753344641054,-460.0,0.00019178,2]
[374539725,1753344641063,-498.1206884,0.00019178,2]
[374539726,1753344641077,-501.8793116,0.00019178,2]
[374539727,1753344641088,-139.12926424,0.00019178,2]
[374539728,1753344641103,-320.87073576,0.00019178,2]
[374539729,1753344641116,-462.94876309,0.00019178,2]
[374539730,1753344641128,-460.0,0.00019178,2]
[374539732,1753344641141,-460.0,0.00019178,2]
[374539734,1753344641153,-460.0,0.00019178,2]
[374539736,1753344641164,-460.0,0.00019178,2]
[374539738,1753344641174,-460.0,0.00019178,2]
[374539740,1753344641186,-460.0,0.00019178,2]
[374539742,1753344641197,-460.0,0.00019178,2]
[374539743,1753344641208,-460.0,0.00019178,2]
[374539744,1753344641219,-460.0,0.00019178,2]
[374539745,1753344641232,-460.0,0.00019178,2]
[374539746,1753344641243,-460.0,0.00019178,2]
[374539747,1753344641254,-246.89844274,0.00019178,2]
[374539748,1753344641285,-213.10155726,0.00019178,2]
[374539749,1753344641296,-460.0,0.00019178,2]
[374539750,1753344641309,-460.0,0.00019178,2]
[374539751,1753344641320,-461.8751412,0.00019178,2]
[374539752,1753344641334,-460.0,0.00019178,2]
[374539753,1753344641345,-460.0,0.00019178,2]
[374539754,1753344641357,-460.0,0.00019178,2]
[374539755,1753344641368,-456.99599647,0.00019178,2]
[374539756,1753344641379,-460.0,0.00019178,2]
[374539757,1753344641389,-460.0,0.00019178,2]
[374539758,1753344641401,-460.0,0.00019178,2]
[374539759,1753344641412,-460.0,0.00019178,2]
[374539760,1753344641423,-460.0,0.00019178,2]
[374539761,1753344641435,-460.0,0.00019178,2]
[374539762,1753344641447,-460.0,0.00019178,2]
[374539763,1753344641458,-460.0,0.00019178,2]
[374539764,1753344641469,-460.0,0.00019178,2]
[374539765,1753344641481,-460.0,0.00019178,2]
[374539766,1753344641492,-460.0,0.00019178,2]
[374539767,1753344641502,-461.25757545,0.00019178,2]
[374539768,1753344641512,-460.0,0.00019178,2]
[374539770,1753344641522,-460.0,0.00019178,2]
[374539771,1753344641534,-460.0,0.00019178,2]
[374539772,1753344641544,-460.0,0.00019178,2]
[374539773,1753344641555,-486.47380722,0.00019178,2]
[374539775,1753344641565,-500.4474808,0.00019178,2]
[374539777,1753344641576,-460.0,0.00019178,2]
[374539779,1753344641588,-461.22322508,0.00019178,2]
[374539781,1753344641600,-460.0,0.00019178,2]
[374539783,1753344641611,-465.88833148,0.00019178,2]
[374539786,1753344641623,-464.18671041,0.00019178,2]
[374539788,1753344641634,-2512.91,0.00019178,2]
[374539790,1753344641646,-460.0,0.00019178,2]
[374539792,1753344641658,-765.88,0.00019178,2]
[374539794,1753344641669,-460.0,0.00019178,2]
[374539797,1753344641682,-460.0,0.00019178,2]
[374539799,1753344641694,-460.0,0.00019178,2]
[374539801,1753344641704,-304.68469093,0.00019178,2]
[374539803,1753344641715,-460.0,0.00019178,2]
[374539805,1753344641727,-460.0,0.00019178,2]
[374539807,1753344641738,-460.0,0.00019178,2]
[374539809,1753344641749,-460.0,0.00019178,2]
[374539811,1753344641760,-460.0,0.00019178,2]
[374539814,1753344641771,-460.0,0.00019178,2]
[374539816,1753344641782,-460.0,0.00019178,2]
[374539818,1753344641797,-460.0,0.00019178,2]
[374539820,1753344641809,-460.0,0.00019178,2]
[374539822,1753344641821,-485.08884478,0.00019178,2]
[374539825,1753344641832,-460.0,0.00019178,2]
[374539827,1753344641842,-460.0,0.00019178,2]
[374539829,1753344641852,-460.0,0.00019178,2]
[374539831,1753344641864,-460.0,0.00019178,2]
[374539833,1753344641876,-460.0,0.00019178,2]
[374539835,1753344641889,-460.0,0.00019178,2]
[374539837,1753344641902,-460.0,0.00019178,2]
[374539839,1753344641914,-460.0,0.00019178,2]
[374539841,1753344641926,-460.0,0.00019178,2]
[374539843,1753344641937,-460.0,0.00019178,2]
[374539845,1753344641947,-460.0,0.00019178,2]
[374539846,1753344641958,-1312.04,0.00019178,2]
[374539847,1753344641968,-460.0,0.00019178,2]
[374539848,1753344641979,-460.0,0.00019178,2]
[374539849,1753344641990,-460.0,0.00019178,2]
[374539850,1753344642001,-460.0,0.00019178,2]
[374539851,1753344642013,-460.0,0.00019178,2]
[374539852,1753344642024,-329.07869915,0.00019178,2]
[374539853,1753344642035,-460.0,0.00019178,2]
[374539854,1753344642046,-460.0,0.00019178,2]
[374539855,1753344642057,-460.0,0.00019178,2]
[374539856,1753344642069,-460.0,0.00019178,2]
[374539857,1753344642079,-460.0,0.00019178,2]
[374539858,1753344642090,-460.0,0.00019178,2]
[374539859,1753344642101,-460.0,0.00019178,2]
[374539860,1753344642112,-460.0,0.00019178,2]
[374539861,1753344642122,-472.692786,0.00019178,2]
[374539862,1753344642133,-460.0,0.00019178,2]
[374539863,1753344642144,-173.25920572,0.00019178,2]
[374539864,1753344642155,-1572.12,0.00019178,2]
[374539865,1753344642166,-460.0,0.00019178,2]
[374539866,1753344642177,-460.0,0.00019178,2]
[374539867,1753344642188,-460.0,0.00019178,2]
[374539868,1753344642199,-925.41,0.00019178,2]
[374539869,1753344642210,-460.0,0.00019178,2]
[374539870,1753344642220,-460.0,0.00019178,2]
[374539871,1753344642231,-460.0,0.00019178,2]
[374539872,1753344642242,-460.0,0.00019178,2]
[374539873,1753344642252,-460.0,0.00019178,2]
[374539874,1753344642264,-460.0,0.00019178,2]
[374539875,1753344642275,-460.0,0.00019178,2]
[374539876,1753344642285,-337.93848047,0.00019178,2]
[374539877,1753344642297,-460.0,0.00019178,2]
[374539878,1753344642307,-460.0,0.00019178,2]
[374539879,1753344642318,-460.0,0.00019178,2]
[374539880,1753344642329,-460.0,0.00019178,2]
[374539881,1753344642339,-591.79,0.00019178,2]
[374539882,1753344642350,-460.0,0.00019178,2]
[374539883,1753344642361,-460.0,0.00019178,2]
[374539884,1753344642371,-460.0,0.00019178,2]
[374539885,1753344642382,-460.0,0.00019178,2]
[374539886,1753344642393,-460.0,0.00019178,2]
[374539887,1753344642403,-460.0,0.00019178,2]
[374539888,1753344642414,-460.0,0.00019178,2]
[374539889,1753344642425,-460.0,0.00019178,2]
[374539890,1753344642435,-328.87942576,0.00019178,2]
[374539891,1753344642446,-460.0,0.00019178,2]
[374539892,1753344642456,-460.0,0.00019178,2]
[374539893,1753344642467,-460.0,0.00019178,2]
[374539894,1753344642478,-855.36,0.00019178,2]
[374539895,1753344642489,-460.0,0.00019178,2]
[374539896,1753344642499,-460.0,0.00019178,2]
[374539897,1753344642510,-460.0,0.00019178,2]
[374539898,1753344642521,-460.0,0.00019178,2]
[374539899,1753344642539,-460.0,0.00019178,2]
[374539901,1753344642550,-641.67,0.00019178,2]
[374539903,1753344642560,-460.0,0.00019178,2]
[374539904,1753344642571,-460.0,0.00019178,2]
[374539905,1753344642581,-460.0,0.00019178,2]
[374539906,1753344642601,-460.0,0.00019178,2]
[374539907,1753344642612,-460.0,0.00019178,2]
[374539908,1753344642623,-839.03,0.00019178,2]
[374539909,1753344642634,-460.0,0.00019178,2]
[374539910,1753344642644,-460.0,0.00019178,2]
[374539911,1753344642655,-460.0,0.00019178,2]
[374539912,1753344642666,-200.40851563,0.00019178,2]
[374539913,1753344642826,-460.0,0.00019178,2]
[374539914,1753344642837,-460.0,0.00019178,2]
[374539915,1753344642847,-460.0,0.00019178,2]
[374539916,1753344642857,-460.0,0.00019178,2]
[374539917,1753344642867,-460.0,0.00019178,2]
[374539918,1753344642877,-460.0,0.00019178,2]
[374539919,1753344642887,-460.0,0.00019178,2]
[374539920,1753344642897,-460.0,0.00019178,2]
[374539921,1753344642907,-460.0,0.00019178,2]
[374539922,1753344642916,-464.31808404,0.00019178,2]
[374539923,1753344642926,-460.0,0.00019178,2]
[374539924,1753344642935,-460.0,0.00019178,2]
[374539925,1753344642945,-460.0,0.00019178,2]
[374539926,1753344642955,-460.0,0.00019178,2]
[374539927,1753344642965,-2474.78,0.00019178,2]
[374539928,1753344642975,-460.0,0.00019178,2]
[374539929,1753344642984,-460.0,0.00019178,2]
[374539930,1753344642994,-847.41,0.00019178,2]
[374539931,1753344643003,-460.0,0.00019178,2]
[374539932,1753344643012,-460.0,0.00019178,2]
[374539934,1753344643022,-460.0,0.00019178,2]
[374539935,1753344643031,-799.73,0.00019178,2]
[374539936,1753344643041,-460.0,0.00019178,2]
[374539937,1753344643050,-460.0,0.00019178,2]
[374539938,1753344643060,-460.0,0.00019178,2]
[374539939,1753344643070,-460.0,0.00019178,2]
[374539940,1753344643079,-460.0,0.00019178,2]
[374539941,1753344643088,-460.0,0.00019178,2]
[374539942,1753344643097,-460.0,0.00019178,2]
[374539943,1753344643107,-460.0,0.00019178,2]
[374539944,1753344643116,-460.0,0.00019178,2]
[374539945,1753344643125,-878.66,0.00019178,2]
[374539946,1753344643134,-460.0,0.00019178,2]
[374539947,1753344643144,-460.0,0.00019178,2]
[374539948,1753344643153,-460.0,0.00019178,2]
[374539949,1753344643163,-460.0,0.00019178,2]
[374539950,1753344643173,-460.0,0.00019178,2]
[374539951,1753344643182,-460.0,0.00019178,2]
[374539952,1753344643191,-460.0,0.00019178,2]
[374539953,1753344643201,-460.0,0.00019178,2]
[374539954,1753344643210,-749.9,0.00019178,2]
[374539955,1753344643219,-460.0,0.00019178,2]
[374539956,1753344643229,-460.0,0.00019178,2]
[374539957,1753344643239,-460.0,0.00019178,2]
[374539958,1753344643248,-479.86,0.00019178,2]
[374539960,1753344643257,-463.2607434,0.00019178,2]
[374539961,1753344643266,-460.0,0.00019178,2]
[374539963,1753344643275,-1302.2,0.00019178,2]
[374539965,1753344643284,-1302.2,0.00019178,2]
[374539967,1753344643295,-460.0,0.00019178,2]
[374539969,1753344643305,-463.88601594,0.00019178,2]
[374539971,1753344643315,-460.0,0.00019178,2]
[374539973,1753344643324,-460.0,0.00019178,2]
[374539975,1753344643333,-460.0,0.00019178,2]
[374539978,1753344643344,-460.0,0.00019178,2]
[374539980,1753344643353,-460.0,0.00019178,2]
[374539982,1753344643362,-460.0,0.00019178,2]
[374539984,1753344643371,-460.0,0.00019178,2]
[374539986,1753344643380,-425.04887497,0.00019178,2]
[374539988,1753344643389,-460.0,0.00019178,2]
[374539990,1753344643399,-460.0,0.00019178,2]
[374539992,1753344643408,-460.54583215,0.00019178,2]
[374539994,1753344643418,-460.0,0.00019178,2]
[374539996,1753344643427,-307.812443,0.00019178,2]
[374539997,1753344643437,-534.95714268,0.00019352,2]
[374539998,1753344643446,-500.0,0.00019447,2]
[374539999,1753344643456,-1302.2,0.00019451,2]
[374540000,1753344643466,-460.0,0.00019452,2]
[374540001,1753344643475,-482.62340415,0.00019452,2]
[374540002,1753344643484,-460.0,0.00019452,2]
[374540003,1753344643495,-460.0,0.00019452,2]
[374540004,1753344643504,-460.0,0.00019452,2]
[374540005,1753344643514,-439.18520902,0.00019452,2]
[374540006,1753344643523,-462.74548256,0.00019452,2]
[374540007,1753344643533,-460.0,0.00019452,2]
[374540008,1753344643547,-460.0,0.00019452,2]
[374540009,1753344643556,-460.0,0.00019452,2]
[374540010,1753344643566,-460.0,0.00019452,2]
[374540011,1753344643576,-463.84024398,0.00019452,2]
[374540012,1753344643585,-460.0,0.00019452,2]
[374540013,1753344643595,-460.0,0.00019452,2]
[374540014,1753344643604,-460.0,0.00019452,2]